[Event "*** Titled Tuesday Blitz"]
[Site "Chess.com"]
[Date "2019.01.01"]
[Round "4"]
[White "xamax2000"]
[Black "NTBT_DHS"]
[Result "1-0"]
[WhiteElo "2522"]
[BlackElo "2694"]
[TimeControl "180+2"]
[EndTime "13:56:43 PST"]
[Termination "xamax2000 won by checkmate"]

1. e4 {[%clk 0:03:01.9]} 1... c6 {[%clk 0:03:00.5]} 2. d4 {[%clk 0:02:49.4]}
2... d5 {[%clk 0:03:02.4]} 3. exd5 {[%clk 0:02:51.2]} 3... cxd5 {[%clk
0:03:03.3]} 4. Bd3 {[%clk 0:02:53]} 4... Nf6 {[%clk 0:03:03.4]} 5. c3 {[%clk
0:02:49.1]} 5... Nc6 {[%clk 0:03:04.2]} 6. Bf4 {[%clk 0:02:38.8]} 6... g6 {[%clk
0:02:50.2]} 7. Nf3 {[%clk 0:02:28.1]} 7... Bg4 {[%clk 0:02:49.5]} 8. Nbd2 {[%clk
0:02:27.4]} 8... Bg7 {[%clk 0:02:49.7]} 9. O-O {[%clk 0:02:28.5]} 9... O-O
{[%clk 0:02:45.5]} 10. Re1 {[%clk 0:02:29.2]} 10... Re8 {[%clk 0:02:26.7]} 11.
h3 {[%clk 0:02:25.1]} 11... Bxf3 {[%clk 0:02:19.2]} 12. Nxf3 {[%clk 0:02:27]}
12... Qb6 {[%clk 0:02:19.6]} 13. Qd2 {[%clk 0:02:23.2]} 13... a5 {[%clk
0:02:17.4]} 14. a4 {[%clk 0:02:12.1]} 14... Nd7 {[%clk 0:02:17.5]} 15. Bb5
{[%clk 0:01:49.7]} 15... Rad8 {[%clk 0:02:09]} 16. Re2 {[%clk 0:01:46.7]} 16...
Na7 {[%clk 0:02:00.3]} 17. Bd3 {[%clk 0:01:45.5]} 17... e6 {[%clk 0:01:40.9]}
18. h4 {[%clk 0:01:44.3]} 18... Nf6 {[%clk 0:01:27.7]} 19. Bg5 {[%clk 0:01:37]}
19... Nc6 {[%clk 0:01:15.6]} 20. h5 {[%clk 0:01:27.7]} 20... Ne7 {[%clk
0:01:14.1]} 21. hxg6 {[%clk 0:00:57]} 21... hxg6 {[%clk 0:01:12.9]} 22. Qf4
{[%clk 0:00:55.4]} 22... Qd6 {[%clk 0:00:41.9]} 23. Qh4 {[%clk 0:00:53.5]} 23...
Nh7 {[%clk 0:00:39.3]} 24. Bf4 {[%clk 0:00:54]} 24... Qb6 {[%clk 0:00:35.1]} 25.
g4 {[%clk 0:00:37.9]} 25... Nc6 {[%clk 0:00:33.1]} 26. Kg2 {[%clk 0:00:34.6]}
26... Nf8 {[%clk 0:00:28.1]} 27. Rh1 {[%clk 0:00:34.4]} 27... f6 {[%clk
0:00:29.2]} 28. Bh6 {[%clk 0:00:31]} 28... Qc7 {[%clk 0:00:30.4]} 29. Bc1 {[%clk
0:00:18.4]} 29... e5 {[%clk 0:00:25.8]} 30. dxe5 {[%clk 0:00:18.6]} 30... Nxe5
{[%clk 0:00:27.7]} 31. Nxe5 {[%clk 0:00:18.9]} 31... Rxe5 {[%clk 0:00:27.3]} 32.
Bf4 {[%clk 0:00:19.5]} 32... d4 {[%clk 0:00:23.8]} 33. Bxe5 {[%clk 0:00:20.4]}
33... fxe5 {[%clk 0:00:24.9]} 34. Bb1 {[%clk 0:00:19.2]} 34... d3 {[%clk
0:00:24.4]} 35. Ba2+ {[%clk 0:00:19.5]} 35... Ne6 {[%clk 0:00:22.7]} 36. Bxe6+
{[%clk 0:00:20.7]} 36... Kf8 {[%clk 0:00:24.6]} 37. Re4 {[%clk 0:00:20.4]} 37...
d2 {[%clk 0:00:23.5]} 38. Rd1 {[%clk 0:00:21.5]} 38... Rd6 {[%clk 0:00:22.1]}
39. Ba2 {[%clk 0:00:21.1]} 39... Qc6 {[%clk 0:00:23.1]} 40. f3 {[%clk
0:00:22.4]} 40... Qb6 {[%clk 0:00:24]} 41. Qf2 {[%clk 0:00:23.2]} 41... Qxb2
{[%clk 0:00:24.1]} 42. Bc4 {[%clk 0:00:24]} 42... Qc2 {[%clk 0:00:21.3]} 43. Qc5
{[%clk 0:00:23.8]} 43... Ke7 {[%clk 0:00:20.2]} 44. Rxe5+ {[%clk 0:00:19.8]}
44... Bxe5 {[%clk 0:00:21]} 45. Qxe5+ {[%clk 0:00:21.7]} 45... Kd7 {[%clk
0:00:21.8]} 46. Bb5+ {[%clk 0:00:23.2]} 46... Kc7 {[%clk 0:00:16.2]} 47. Qc5+
{[%clk 0:00:24]} 47... Rc6 {[%clk 0:00:16.7]} 48. Qe7+ {[%clk 0:00:20]} 48...
Kb8 {[%clk 0:00:17]} 49. Bxc6 {[%clk 0:00:21.3]} 49... bxc6 {[%clk 0:00:18.4]}
50. Qe2 {[%clk 0:00:22.2]} 50... Qxc3 {[%clk 0:00:19.5]} 51. Rxd2 {[%clk
0:00:23.5]} 51... Kc7 {[%clk 0:00:19]} 52. Qe7+ {[%clk 0:00:24.4]} 52... Kb6
{[%clk 0:00:19.9]} 53. Qd8+ {[%clk 0:00:25.9]} 53... Kc5 {[%clk 0:00:19.7]} 54.
Qd6+ {[%clk 0:00:26.3]} 54... Kb6 {[%clk 0:00:20.6]} 55. Re2 {[%clk 0:00:24.3]}
55... Qb3 {[%clk 0:00:16.9]} 56. Re5 {[%clk 0:00:24.5]} 56... Qxa4 {[%clk
0:00:15.4]} 57. Qb8+ {[%clk 0:00:23.3]} 57... Ka6 {[%clk 0:00:15.9]} 58. Re7
{[%clk 0:00:16.2]} 58... Qe4 {[%clk 0:00:14.1]} 59. Qb7# {[%clk 0:00:16.5]} 1-0

[Event "*** Titled Tuesday Blitz"]
[Site "Chess.com"]
[Date "2019.01.01"]
[Round "4"]
[White "Rakhmanov_Aleksandr"]
[Black "VerdeNotte"]
[Result "1-0"]
[WhiteElo "2812"]
[BlackElo "2849"]
[TimeControl "180+2"]
[EndTime "13:56:47 PST"]
[Termination "Rakhmanov_Aleksandr won by resignation"]

1. c4 {[%clk 0:02:56.2]} 1... Nf6 {[%clk 0:03:00.6]} 2. Nc3 {[%clk 0:02:57.6]}
2... g6 {[%clk 0:03:02]} 3. g3 {[%clk 0:02:59]} 3... Bg7 {[%clk 0:03:02.6]} 4.
Bg2 {[%clk 0:03:00.6]} 4... c5 {[%clk 0:03:03.6]} 5. d3 {[%clk 0:03:01.6]} 5...
O-O {[%clk 0:03:04.3]} 6. e3 {[%clk 0:03:02.9]} 6... Nc6 {[%clk 0:03:05.5]} 7.
Nge2 {[%clk 0:03:04.3]} 7... Rb8 {[%clk 0:03:06.6]} 8. O-O {[%clk 0:03:04.1]}
8... a6 {[%clk 0:03:07.8]} 9. b3 {[%clk 0:03:05.4]} 9... b5 {[%clk 0:03:08.7]}
10. Bb2 {[%clk 0:03:06.8]} 10... bxc4 {[%clk 0:03:01]} 11. dxc4 {[%clk
0:03:07.4]} 11... Bb7 {[%clk 0:03:02.1]} 12. Qd2 {[%clk 0:03:03.6]} 12... d6
{[%clk 0:02:54.6]} 13. Rad1 {[%clk 0:03:03.1]} 13... Qd7 {[%clk 0:02:54.5]} 14.
Ba1 {[%clk 0:02:56.3]} 14... Rfd8 {[%clk 0:02:53.9]} 15. h3 {[%clk 0:02:56.5]}
15... Nb4 {[%clk 0:02:44.7]} 16. e4 {[%clk 0:02:54.1]} 16... Nc6 {[%clk
0:02:44.9]} 17. f4 {[%clk 0:02:52.5]} 17... e6 {[%clk 0:02:29.5]} 18. g4 {[%clk
0:02:47.2]} 18... Qe7 {[%clk 0:02:29.6]} 19. Ng3 {[%clk 0:02:44.2]} 19... Nd4
{[%clk 0:02:30]} 20. g5 {[%clk 0:02:44.5]} 20... Ne8 {[%clk 0:02:28.3]} 21. h4
{[%clk 0:02:45.9]} 21... h5 {[%clk 0:02:22.7]} 22. Nce2 {[%clk 0:02:40.7]} 22...
Nxe2+ {[%clk 0:02:16]} 23. Qxe2 {[%clk 0:02:42.6]} 23... Bxa1 {[%clk 0:02:16.7]}
24. Rxa1 {[%clk 0:02:43.9]} 24... Ng7 {[%clk 0:02:16.7]} 25. Rad1 {[%clk
0:02:40.9]} 25... Rd7 {[%clk 0:02:15.3]} 26. Rd3 {[%clk 0:02:41.9]} 26... Rbd8
{[%clk 0:02:14.1]} 27. Rfd1 {[%clk 0:02:43.4]} 27... Bc6 {[%clk 0:02:07.2]} 28.
Qd2 {[%clk 0:02:43.1]} 28... Ne8 {[%clk 0:02:01.5]} 29. f5 {[%clk 0:02:36.9]}
29... exf5 {[%clk 0:01:59.5]} 30. exf5 {[%clk 0:02:36.3]} 30... Bxg2 {[%clk
0:02:01.4]} 31. Kxg2 {[%clk 0:02:22]} 31... Nc7 {[%clk 0:01:28.8]} 32. Re3
{[%clk 0:02:08.2]} 32... Qf8 {[%clk 0:01:29.4]} 33. Ne4 {[%clk 0:01:38.6]} 33...
Ne8 {[%clk 0:01:20.4]} 34. Qd5 {[%clk 0:01:39.5]} 34... Qg7 {[%clk 0:01:08.1]}
35. Nxc5 {[%clk 0:00:54.7]} 35... dxc5 {[%clk 0:01:06.2]} 36. Qxd7 {[%clk
0:00:55.3]} 36... Qb2+ {[%clk 0:01:00]} 37. Kf3 {[%clk 0:00:43.4]} 37... Rxd7
{[%clk 0:00:59.9]} 38. Rxe8+ {[%clk 0:00:43.9]} 38... Kh7 {[%clk 0:00:53.6]} 39.
Rxd7 {[%clk 0:00:35.6]} 39... gxf5 {[%clk 0:00:46.5]} 40. Rxf7+ {[%clk
0:00:33.2]} 40... Kg6 {[%clk 0:00:47.6]} 41. Rf6+ {[%clk 0:00:33.6]} 41... Kg7
{[%clk 0:00:49]} 42. Re7+ {[%clk 0:00:35]} 42... Kg8 {[%clk 0:00:50.3]} 43. Rd6
{[%clk 0:00:33.3]} 43... Kf8 {[%clk 0:00:26.5]} 44. Ra7 {[%clk 0:00:16.4]} 44...
Qc3+ {[%clk 0:00:10.5]} 45. Kf4 {[%clk 0:00:17.1]} 45... Qc1+ {[%clk 0:00:11.3]}
46. Ke5 {[%clk 0:00:12.1]} 46... Qc3+ {[%clk 0:00:07.4]} 47. Ke6 {[%clk
0:00:10.9]} 47... Qe3+ {[%clk 0:00:06.6]} 48. Kf6 {[%clk 0:00:12.1]} 48... Qc3+
{[%clk 0:00:04.9]} 49. Kg6 {[%clk 0:00:11.7]} 49... Ke8 {[%clk 0:00:06.3]} 50.
Re6+ {[%clk 0:00:12.1]} 50... Kd8 {[%clk 0:00:07.3]} 51. Rf6 {[%clk 0:00:12.4]}
51... Ke8 {[%clk 0:00:07.9]} 52. Re6+ {[%clk 0:00:06.2]} 52... Kd8 {[%clk
0:00:08.3]} 53. Rexa6 {[%clk 0:00:08.1]} 53... Qf3 {[%clk 0:00:03.1]} 54. Rf6
{[%clk 0:00:08.5]} 54... Ke8 {[%clk 0:00:03.3]} 55. Raa6 {[%clk 0:00:08.5]}
55... Qb7 {[%clk 0:00:02.5]} 56. Rae6+ {[%clk 0:00:10.4]} 56... Kd8 {[%clk
0:00:03.6]} 57. Rf8+ {[%clk 0:00:11.1]} 57... Kd7 {[%clk 0:00:05]} 58. Rf7+
{[%clk 0:00:12.8]} 58... Kxe6 {[%clk 0:00:06.6]} 59. Rxb7 {[%clk 0:00:14.4]}
59... f4 {[%clk 0:00:08.2]} 60. Rf7 {[%clk 0:00:15.9]} 60... Ke5 {[%clk
0:00:10.1]} 61. Rxf4 {[%clk 0:00:16.7]} 1-0

[Event "*** Titled Tuesday Blitz"]
[Site "Chess.com"]
[Date "2019.01.01"]
[Round "4"]
[White "twitchTriniCupid"]
[Black "Gr3egor"]
[Result "1/2-1/2"]
[WhiteElo "2260"]
[BlackElo "2465"]
[TimeControl "180+2"]
[EndTime "13:56:59 PST"]
[Termination "Game drawn by agreement"]

1. d4 {[%clk 0:02:56.7]} 1... Nf6 {[%clk 0:02:53]} 2. c4 {[%clk 0:02:57.1]} 2...
g6 {[%clk 0:02:54]} 3. Nc3 {[%clk 0:02:57.6]} 3... Bg7 {[%clk 0:02:55.3]} 4. Bg5
{[%clk 0:02:58.8]} 4... O-O {[%clk 0:02:54.8]} 5. e3 {[%clk 0:02:59]} 5... d6
{[%clk 0:02:50.9]} 6. Be2 {[%clk 0:02:58.6]} 6... Nbd7 {[%clk 0:02:52.3]} 7. Nf3
{[%clk 0:02:59.6]} 7... h6 {[%clk 0:02:53.8]} 8. Bh4 {[%clk 0:03:00.6]} 8... c6
{[%clk 0:02:50.2]} 9. Qc2 {[%clk 0:03:00.5]} 9... a6 {[%clk 0:02:47.6]} 10. b4
{[%clk 0:02:49.1]} 10... b5 {[%clk 0:02:46.8]} 11. O-O {[%clk 0:02:46.1]} 11...
Bb7 {[%clk 0:02:35.6]} 12. a4 {[%clk 0:02:41.9]} 12... bxc4 {[%clk 0:02:35.7]}
13. Bxc4 {[%clk 0:02:41.8]} 13... c5 {[%clk 0:02:37.2]} 14. bxc5 {[%clk
0:02:42.7]} 14... dxc5 {[%clk 0:02:38.2]} 15. Rfd1 {[%clk 0:02:20.3]} 15... cxd4
{[%clk 0:02:34.8]} 16. Rxd4 {[%clk 0:02:13.8]} 16... Qc7 {[%clk 0:02:23.7]} 17.
Qxg6 {[%clk 0:01:23]} 17... Bxf3 {[%clk 0:02:03]} 18. Bxf6 {[%clk 0:01:22.3]}
18... Nxf6 {[%clk 0:01:04.6]} 19. gxf3 {[%clk 0:01:09.2]} 19... e6 {[%clk
0:01:01.1]} 20. Qg2 {[%clk 0:00:55]} 20... Rac8 {[%clk 0:00:52.3]} 21. Ne4
{[%clk 0:00:30.3]} 21... Kh8 {[%clk 0:00:48.3]} 22. Rad1 {[%clk 0:00:26.1]}
22... Rg8 {[%clk 0:00:25.2]} 23. Ng3 {[%clk 0:00:26.2]} 23... Nd5 {[%clk
0:00:19.4]} 24. Rh4 {[%clk 0:00:21.7]} 24... Nc3 {[%clk 0:00:17.4]} 25. Rf1
{[%clk 0:00:17.1]} 25... Qe5 {[%clk 0:00:17.7]} 26. Bxa6 {[%clk 0:00:16.9]}
26... Ra8 {[%clk 0:00:18.9]} 27. Bd3 {[%clk 0:00:17.8]} 27... Rxa4 {[%clk
0:00:19.1]} 28. Rxa4 {[%clk 0:00:14.2]} 28... Nxa4 {[%clk 0:00:21]} 29. Qh3
{[%clk 0:00:15.4]} 29... Nc5 {[%clk 0:00:21.5]} 30. Bc2 {[%clk 0:00:16]} 30...
Bf8 {[%clk 0:00:22.3]} 31. Kh1 {[%clk 0:00:17]} 31... f5 {[%clk 0:00:23.3]} 32.
Nh5 {[%clk 0:00:17.7]} 32... Qd5 {[%clk 0:00:22.4]} 33. Bb1 {[%clk 0:00:18.3]}
33... Rg5 {[%clk 0:00:21.8]} 34. Ng3 {[%clk 0:00:18.3]} 34... Bg7 {[%clk
0:00:21.6]} 35. Qg2 {[%clk 0:00:20.2]} 35... h5 {[%clk 0:00:22.4]} 36. f4 {[%clk
0:00:21.5]} 36... Qxg2+ {[%clk 0:00:21.6]} 37. Kxg2 {[%clk 0:00:23.2]} 37... Rg6
{[%clk 0:00:23.2]} 38. Kf3 {[%clk 0:00:24.5]} 38... h4 {[%clk 0:00:24.2]} 39.
Ne2 {[%clk 0:00:25.1]} 39... e5 {[%clk 0:00:23.7]} 40. fxe5 {[%clk 0:00:26.1]}
40... Bxe5 {[%clk 0:00:25.6]} 41. Bxf5 {[%clk 0:00:27.2]} 41... Rf6 {[%clk
0:00:26.9]} 42. Kg4 {[%clk 0:00:28.6]} 42... Bxh2 {[%clk 0:00:27.5]} 43. f4
{[%clk 0:00:30.1]} 43... Bg3 {[%clk 0:00:16.6]} 44. Nxg3 {[%clk 0:00:27.9]}
44... hxg3 {[%clk 0:00:18.5]} 45. Rg1 {[%clk 0:00:24.6]} 45... Nb7 {[%clk
0:00:16.6]} 46. Kg5 {[%clk 0:00:22.6]} 46... Rf8 {[%clk 0:00:14.4]} 47. Rxg3
{[%clk 0:00:23]} 47... Nd6 {[%clk 0:00:14.1]} 48. Bg6 {[%clk 0:00:22.7]} 48...
Kg7 {[%clk 0:00:13.2]} 49. f5 {[%clk 0:00:21.7]} 49... Ne4+ {[%clk 0:00:14.5]}
50. Kf4 {[%clk 0:00:22.7]} 50... Nxg3 {[%clk 0:00:15.9]} 51. Kxg3 {[%clk
0:00:24.6]} 51... Kf6 {[%clk 0:00:17.3]} 52. Kf4 {[%clk 0:00:26.1]} 52... Ra8
{[%clk 0:00:17.7]} 53. e4 {[%clk 0:00:27.1]} 53... Ra4 {[%clk 0:00:19.3]} 54.
Be8 {[%clk 0:00:27.4]} 54... Rb4 {[%clk 0:00:20.6]} 55. Bc6 {[%clk 0:00:28.1]}
55... Rc4 {[%clk 0:00:22.1]} 56. Bd5 {[%clk 0:00:29.3]} 56... Rb4 {[%clk
0:00:23.8]} 57. Be6 {[%clk 0:00:30.1]} 57... Rd4 {[%clk 0:00:25]} 58. Bd5 {[%clk
0:00:30.4]} 58... Rb4 {[%clk 0:00:26.2]} 59. Ke3 {[%clk 0:00:28.7]} 59... Ke5
{[%clk 0:00:27.1]} 60. Kf3 {[%clk 0:00:29.4]} 60... Rd4 {[%clk 0:00:27.3]} 61.
Kg4 {[%clk 0:00:28.4]} 61... Rd1 {[%clk 0:00:28.8]} 62. Kf3 {[%clk 0:00:22.7]}
62... Rf1+ {[%clk 0:00:29.6]} 63. Kg4 {[%clk 0:00:21.7]} 63... Rg1+ {[%clk
0:00:28.6]} 64. Kf3 {[%clk 0:00:22.9]} 64... Ra1 {[%clk 0:00:30.2]} 65. Kg4
{[%clk 0:00:22.9]} 65... Ra3 {[%clk 0:00:31.5]} 66. Kh4 {[%clk 0:00:20.9]} 66...
Rc3 {[%clk 0:00:31]} 67. Kg4 {[%clk 0:00:22]} 67... Rc1 {[%clk 0:00:31.9]} 68.
Kf3 {[%clk 0:00:22.8]} 68... Rd1 {[%clk 0:00:32.9]} 69. Kg4 {[%clk 0:00:21.7]}
69... Rg1+ {[%clk 0:00:32.7]} 70. Kf3 {[%clk 0:00:22.9]} 70... Rf1+ {[%clk
0:00:33.5]} 1/2-1/2

[Event "*** Titled Tuesday Blitz"]
[Site "Chess.com"]
[Date "2019.01.01"]
[Round "4"]
[White "SARGISMV"]
[Black "gmjlh"]
[Result "0-1"]
[WhiteElo "2413"]
[BlackElo "2646"]
[TimeControl "180+2"]
[EndTime "13:57:00 PST"]
[Termination "gmjlh won by checkmate"]

1. Nf3 {[%clk 0:03:01.4]} 1... d5 {[%clk 0:03:00]} 2. c4 {[%clk 0:03:01.8]} 2...
e6 {[%clk 0:03:00]} 3. g3 {[%clk 0:03:01.7]} 3... Nf6 {[%clk 0:03:00.2]} 4. Bg2
{[%clk 0:03:03.1]} 4... Be7 {[%clk 0:03:00.7]} 5. O-O {[%clk 0:03:04.6]} 5...
O-O {[%clk 0:03:01.2]} 6. b3 {[%clk 0:03:05.7]} 6... Nc6 {[%clk 0:02:57.6]} 7.
Bb2 {[%clk 0:02:57]} 7... d4 {[%clk 0:02:58.3]} 8. e3 {[%clk 0:02:57.2]} 8... e5
{[%clk 0:02:55.2]} 9. exd4 {[%clk 0:02:58.2]} 9... exd4 {[%clk 0:02:52.9]} 10.
d3 {[%clk 0:02:57.7]} 10... a5 {[%clk 0:02:50.5]} 11. Na3 {[%clk 0:02:53.7]}
11... Bc5 {[%clk 0:02:46]} 12. Nb5 {[%clk 0:02:41.4]} 12... h6 {[%clk 0:02:36]}
13. Qd2 {[%clk 0:02:37.9]} 13... Bf5 {[%clk 0:02:27.1]} 14. a3 {[%clk
0:02:32.5]} 14... Qd7 {[%clk 0:02:08.8]} 15. Rfe1 {[%clk 0:02:28.3]} 15... Rfe8
{[%clk 0:02:05.9]} 16. Rad1 {[%clk 0:02:26.1]} 16... Bh7 {[%clk 0:01:58.3]} 17.
Rxe8+ {[%clk 0:02:08.5]} 17... Rxe8 {[%clk 0:01:58.4]} 18. Qf4 {[%clk
0:02:10.1]} 18... Re2 {[%clk 0:01:44.3]} 19. Bxd4 {[%clk 0:02:03]} 19... Nxd4
{[%clk 0:01:41.7]} 20. Nfxd4 {[%clk 0:02:03.9]} 20... Ra2 {[%clk 0:01:04.5]} 21.
Bxb7 {[%clk 0:01:50.3]} 21... Qg4 {[%clk 0:00:50.5]} 22. Bf3 {[%clk 0:01:31.9]}
22... Qxf4 {[%clk 0:00:38.1]} 23. gxf4 {[%clk 0:01:33.8]} 23... Rb2 {[%clk
0:00:30.3]} 24. f5 {[%clk 0:01:20.1]} 24... g5 {[%clk 0:00:21.3]} 25. fxg6
{[%clk 0:01:16.3]} 25... Bxg6 {[%clk 0:00:20.7]} 26. h3 {[%clk 0:00:43.3]} 26...
Nh5 {[%clk 0:00:15.7]} 27. Be4 {[%clk 0:00:43.3]} 27... Nf4 {[%clk 0:00:10.6]}
28. Bxg6 {[%clk 0:00:42]} 28... fxg6 {[%clk 0:00:11.9]} 29. h4 {[%clk
0:00:41.4]} 29... Nh3+ {[%clk 0:00:11.4]} 30. Kg2 {[%clk 0:00:42.4]} 30... Nxf2
{[%clk 0:00:12.4]} 31. Rf1 {[%clk 0:00:39.9]} 31... Ng4+ {[%clk 0:00:05]} 32.
Kg3 {[%clk 0:00:36.4]} 32... h5 {[%clk 0:00:03.7]} 33. Kf4 {[%clk 0:00:32.1]}
33... Kh7 {[%clk 0:00:03.3]} 34. Ne6 {[%clk 0:00:26.3]} 34... Be7 {[%clk
0:00:03.3]} 35. Ng5+ {[%clk 0:00:24.1]} 35... Kg8 {[%clk 0:00:04.4]} 36. Ke4
{[%clk 0:00:20.2]} 36... c6 {[%clk 0:00:04.8]} 37. Nd4 {[%clk 0:00:19.6]} 37...
Nf6+ {[%clk 0:00:02.7]} 38. Ke5 {[%clk 0:00:20.1]} 38... Ng4+ {[%clk 0:00:03.2]}
39. Ke6 {[%clk 0:00:21.1]} 39... Bxa3 {[%clk 0:00:04.2]} 40. Nxc6 {[%clk
0:00:21.4]} 40... Re2+ {[%clk 0:00:05.5]} 41. Kd7 {[%clk 0:00:21.8]} 41... Re3
{[%clk 0:00:03.8]} 42. d4 {[%clk 0:00:22.9]} 42... Kg7 {[%clk 0:00:02.7]} 43.
Rf7+ {[%clk 0:00:22.8]} 43... Kg8 {[%clk 0:00:04]} 44. d5 {[%clk 0:00:21.4]}
44... Rxb3 {[%clk 0:00:05]} 45. Ne7+ {[%clk 0:00:21.2]} 45... Bxe7 {[%clk
0:00:05.6]} 46. Rxe7 {[%clk 0:00:21.6]} 46... Rb7+ {[%clk 0:00:07.1]} 47. Ke6
{[%clk 0:00:21.9]} 47... Rxe7+ {[%clk 0:00:07]} 48. Kxe7 {[%clk 0:00:23.4]}
48... a4 {[%clk 0:00:08]} 49. d6 {[%clk 0:00:24.7]} 49... Ne5 {[%clk 0:00:08.1]}
50. Ke6 {[%clk 0:00:25.9]} 50... a3 {[%clk 0:00:06.8]} 51. Kxe5 {[%clk
0:00:25.7]} 51... a2 {[%clk 0:00:08.2]} 52. d7 {[%clk 0:00:20.6]} 52... a1=Q+
{[%clk 0:00:09.3]} 53. Kd6 {[%clk 0:00:22]} 53... Qf6+ {[%clk 0:00:04.7]} 54.
Kc7 {[%clk 0:00:21.5]} 54... Qe5+ {[%clk 0:00:05.4]} 55. Kc6 {[%clk 0:00:21.1]}
55... Qf6+ {[%clk 0:00:03.5]} 56. Kc7 {[%clk 0:00:21.7]} 56... Qf4+ {[%clk
0:00:04.8]} 57. Kc8 {[%clk 0:00:21.2]} 57... Qxc4+ {[%clk 0:00:05.7]} 58. Kb7
{[%clk 0:00:22.6]} 58... Qd5+ {[%clk 0:00:06]} 59. Kc8 {[%clk 0:00:23.9]} 59...
Qc5+ {[%clk 0:00:06.2]} 60. Kb7 {[%clk 0:00:24.1]} 60... Qb5+ {[%clk 0:00:07.1]}
61. Kc7 {[%clk 0:00:24.9]} 61... Qa5+ {[%clk 0:00:08.5]} 62. Kc8 {[%clk
0:00:25.1]} 62... Qa6+ {[%clk 0:00:09.5]} 63. Kc7 {[%clk 0:00:26]} 63... Qc4+
{[%clk 0:00:10.8]} 64. Kd6 {[%clk 0:00:25.4]} 64... Qd4+ {[%clk 0:00:09.7]} 65.
Ke7 {[%clk 0:00:25.7]} 65... Qc5+ {[%clk 0:00:10.9]} 66. Ke8 {[%clk 0:00:26.2]}
66... Qf8# {[%clk 0:00:11.7]} 0-1

[Event "*** Titled Tuesday Blitz"]
[Site "Chess.com"]
[Date "2019.01.01"]
[Round "4"]
[White "wannabe2700"]
[Black "Alexander_Moskalenko"]
[Result "1-0"]
[WhiteElo "2554"]
[BlackElo "2813"]
[TimeControl "180+2"]
[EndTime "13:57:05 PST"]
[Termination "wannabe2700 won by resignation"]

1. d4 {[%clk 0:03:01.9]} 1... Nf6 {[%clk 0:03:00.4]} 2. c4 {[%clk 0:03:02.8]}
2... c5 {[%clk 0:03:02.3]} 3. d5 {[%clk 0:03:03.3]} 3... b5 {[%clk 0:03:01.9]}
4. cxb5 {[%clk 0:03:03.7]} 4... a6 {[%clk 0:03:02.7]} 5. bxa6 {[%clk 0:03:05.6]}
5... g6 {[%clk 0:03:03.8]} 6. Nc3 {[%clk 0:03:06.8]} 6... Bxa6 {[%clk
0:03:04.2]} 7. e4 {[%clk 0:03:05.8]} 7... Bxf1 {[%clk 0:03:04.3]} 8. Kxf1 {[%clk
0:03:07.7]} 8... d6 {[%clk 0:03:06]} 9. g3 {[%clk 0:03:09.1]} 9... Bg7 {[%clk
0:03:04.4]} 10. Kg2 {[%clk 0:03:10.3]} 10... O-O {[%clk 0:03:05.7]} 11. Nf3
{[%clk 0:03:11.5]} 11... Nbd7 {[%clk 0:03:07.3]} 12. a4 {[%clk 0:03:12.1]} 12...
Qb6 {[%clk 0:03:08.9]} 13. Bd2 {[%clk 0:03:07.1]} 13... Rfb8 {[%clk 0:02:49.5]}
14. Qe2 {[%clk 0:03:03.6]} 14... Ne8 {[%clk 0:02:05.1]} 15. Rhb1 {[%clk
0:02:46.2]} 15... Nc7 {[%clk 0:02:04.2]} 16. Ra3 {[%clk 0:02:27]} 16... Qa6
{[%clk 0:02:01.9]} 17. Qxa6 {[%clk 0:02:11.5]} 17... Rxa6 {[%clk 0:02:03.8]} 18.
b4 {[%clk 0:02:12.4]} 18... cxb4 {[%clk 0:00:48.2]} 19. Rab3 {[%clk 0:02:12]}
19... Rab6 {[%clk 0:00:41.8]} 20. Nb5 {[%clk 0:02:07.5]} 20... Nxb5 {[%clk
0:00:42.1]} 21. axb5 {[%clk 0:02:07.2]} 21... Rxb5 {[%clk 0:00:43.6]} 22. Rxb4
{[%clk 0:02:06.5]} 22... Rxb4 {[%clk 0:00:43.6]} 23. Rxb4 {[%clk 0:02:08.4]}
23... Rxb4 {[%clk 0:00:41.1]} 24. Bxb4 {[%clk 0:02:10.3]} 24... Nf6 {[%clk
0:00:41.9]} 25. Nd2 {[%clk 0:02:11.1]} 25... g5 {[%clk 0:00:41.5]} 26. h3 {[%clk
0:02:04.1]} 26... h5 {[%clk 0:00:41.8]} 27. Bc3 {[%clk 0:01:56.5]} 27... Nd7
{[%clk 0:00:36.1]} 28. Ba5 {[%clk 0:01:50.3]} 28... g4 {[%clk 0:00:31.3]} 29.
hxg4 {[%clk 0:01:49.9]} 29... hxg4 {[%clk 0:00:33.2]} 30. f3 {[%clk 0:01:30]}
30... Bh6 {[%clk 0:00:32.2]} 31. Nc4 {[%clk 0:01:25.8]} 31... gxf3+ {[%clk
0:00:30.1]} 32. Kxf3 {[%clk 0:01:27.7]} 32... f6 {[%clk 0:00:29.7]} 33. Bb6
{[%clk 0:01:25.4]} 33... Kf7 {[%clk 0:00:30.7]} 34. Bd4 {[%clk 0:01:23.5]} 34...
Kg6 {[%clk 0:00:30.8]} 35. Bb6 {[%clk 0:01:22.2]} 35... Bc1 {[%clk 0:00:31]} 36.
Bd8 {[%clk 0:01:19.6]} 36... Kf7 {[%clk 0:00:31.4]} 37. Bb6 {[%clk 0:01:19.4]}
37... Bh6 {[%clk 0:00:30.7]} 38. Bd4 {[%clk 0:01:19.9]} 38... Nb8 {[%clk
0:00:31.1]} 39. Bb6 {[%clk 0:01:19.5]} 39... Na6 {[%clk 0:00:32]} 40. Bd4 {[%clk
0:01:20.1]} 40... Nb4 {[%clk 0:00:33]} 41. Bb6 {[%clk 0:01:20.1]} 41... Nc2
{[%clk 0:00:33.9]} 42. Bf2 {[%clk 0:01:20.2]} 42... Kg6 {[%clk 0:00:33.6]} 43.
Nb6 {[%clk 0:01:18.8]} 43... Nb4 {[%clk 0:00:31.6]} 44. Nc8 {[%clk 0:01:18.5]}
44... Kf7 {[%clk 0:00:32.8]} 45. Bb6 {[%clk 0:01:17.2]} 45... Nd3 {[%clk
0:00:31.9]} 46. Bd8 {[%clk 0:01:05.3]} 46... Ke8 {[%clk 0:00:32.6]} 47. Bxe7
{[%clk 0:00:49.6]} 47... Ne5+ {[%clk 0:00:27.7]} 48. Ke2 {[%clk 0:00:46.9]}
48... Kd7 {[%clk 0:00:29.2]} 49. Nxd6 {[%clk 0:00:47.5]} 49... Kxe7 {[%clk
0:00:24.4]} 50. Nf5+ {[%clk 0:00:48.5]} 50... Kf7 {[%clk 0:00:26]} 51. Nxh6+
{[%clk 0:00:50.4]} 51... Kg6 {[%clk 0:00:27.4]} 52. Nf5 {[%clk 0:00:46.3]} 52...
Kg5 {[%clk 0:00:29.3]} 53. Ne3 {[%clk 0:00:45.3]} 53... Nd7 {[%clk 0:00:28.8]}
54. Kd3 {[%clk 0:00:45.8]} 54... Ne5+ {[%clk 0:00:29.6]} 55. Kd4 {[%clk
0:00:46.5]} 55... Kg6 {[%clk 0:00:31.5]} 56. d6 {[%clk 0:00:44.5]} 56... Kf7
{[%clk 0:00:33.4]} 57. Kd5 {[%clk 0:00:45.3]} 57... Nd3 {[%clk 0:00:32.4]} 58.
Nf5 {[%clk 0:00:39.4]} 58... Ke8 {[%clk 0:00:32.5]} 59. Ke6 {[%clk 0:00:40]}
59... Nc5+ {[%clk 0:00:33.9]} 60. Kxf6 {[%clk 0:00:31.4]} 60... Nxe4+ {[%clk
0:00:34]} 61. Ke5 {[%clk 0:00:32.1]} 61... Nc5 {[%clk 0:00:31]} 62. Kd5 {[%clk
0:00:33.2]} 62... Nd3 {[%clk 0:00:32]} 63. Kd4 {[%clk 0:00:32]} 63... Nf2 {[%clk
0:00:31.4]} 64. Ke5 {[%clk 0:00:32.1]} 64... Kd7 {[%clk 0:00:32.7]} 65. Kf6
{[%clk 0:00:30]} 65... Ne4+ {[%clk 0:00:32.9]} 66. Ke5 {[%clk 0:00:30.1]} 66...
Ng5 {[%clk 0:00:32.5]} 67. g4 {[%clk 0:00:29.8]} 67... Nf7+ {[%clk 0:00:32.8]}
68. Kf6 {[%clk 0:00:30.6]} 68... Ng5 {[%clk 0:00:34.7]} 69. Kxg5 {[%clk
0:00:31.4]} 1-0